[Event "Elite Hotels Open 2024"]
[Site "Elite Stadshotellet, Kungsgatan 6, Vaxjo, Sweden"]
[Date "2024.02.09"]
[Round "2.12"]
[White "Kistrup, Nicolai"]
[Black "Bouaziz, Nejib"]
[Result "1-0"]
[TimeControl "15 minutes + 5 seconds per move from move one (Round 1 - 4) / 90 minutes + 30 seconds per move from move one (Round 5 - 8)"]
[WhiteTitle "FM"]
[WhiteFideId "1444816"]
[BlackFideId "1704915"]
[WhiteElo "2326"]
[BlackElo "1957"]

1. d4 {[%clk 00:15:09]} Nf6 {[%clk 00:15:05]} {[%emt 00:00:05]} 2. c4 {[%clk
00:15:12]} {[%emt 00:00:02]} g6 {[%clk 00:15:06]} {[%emt 00:00:04]} 3. Nc3
{[%clk 00:15:16]} {[%emt 00:00:02]} Bg7 {[%clk 00:15:08]} {[%emt 00:00:02]} 4.
e4 {[%clk 00:15:19]} {[%emt 00:00:02]} O-O {[%clk 00:15:10]} {[%emt 00:00:03]}
5. h3 {[%clk 00:15:18]} {[%emt 00:00:06]} d6 {[%clk 00:15:13]} {[%emt
00:00:02]} 6. Be3 {[%clk 00:15:21]} {[%emt 00:00:02]} e5 {[%clk 00:15:04]}
{[%emt 00:00:14]} 7. d5 {[%clk 00:15:25]} {[%emt 00:00:02]} Nbd7 {[%clk
00:14:33]} {[%emt 00:00:36]} 8. g4 {[%clk 00:15:23]} {[%emt 00:00:06]} Nc5
{[%clk 00:14:25]} {[%emt 00:00:14]} 9. f3 {[%clk 00:15:27]} {[%emt 00:00:02]}
a5 {[%clk 00:14:23]} {[%emt 00:00:06]} 10. Qd2 {[%clk 00:15:27]} {[%emt
00:00:04]} Ne8 {[%clk 00:14:04]} {[%emt 00:00:24]} 11. h4 {[%clk 00:15:15]}
{[%emt 00:00:17]} f5 {[%clk 00:13:56]} {[%emt 00:00:14]} 12. gxf5 {[%clk
00:14:39]} {[%emt 00:00:42]} gxf5 {[%clk 00:13:59]} {[%emt 00:00:02]} 13. O-O-O
{[%clk 00:13:37]} {[%emt 00:01:07]} f4 {[%clk 00:14:02]} {[%emt 00:00:02]} 14.
Bf2 {[%clk 00:13:25]} {[%emt 00:00:16]} h6 {[%clk 00:13:57]} {[%emt 00:00:10]}
15. Bh3 {[%clk 00:12:58]} {[%emt 00:00:32]} Bxh3 {[%clk 00:13:50]} {[%emt
00:00:13]} 16. Nxh3 {[%clk 00:12:48]} {[%emt 00:00:16]} Kh8 {[%clk 00:13:53]}
{[%emt 00:00:01]} 17. Rdg1 {[%clk 00:12:08]} {[%emt 00:00:44]} Nf6 {[%clk
00:12:07]} {[%emt 00:01:52]} 18. Bxc5 {[%clk 00:09:40]} {[%emt 00:02:34]} dxc5
{[%clk 00:12:09]} {[%emt 00:00:02]} 19. Ng5 {[%clk 00:09:42]} {[%emt 00:00:03]}
Qe7 {[%clk 00:11:53]} {[%emt 00:00:21]} 20. Ne6 {[%clk 00:09:31]} {[%emt
00:00:16]} Rg8 {[%clk 00:11:54]} {[%emt 00:00:04]} 21. Nb5 {[%clk 00:06:57]}
{[%emt 00:02:39]} Rac8 {[%clk 00:09:26]} {[%emt 00:02:33]} 22. Nbxc7 {[%clk
00:05:51]} {[%emt 00:01:11]} Rxc7 {[%clk 00:09:04]} {[%emt 00:00:27]} 23. Nxg7
{[%clk 00:05:49]} {[%emt 00:00:07]} Qf7 {[%clk 00:06:26]} {[%emt 00:02:42]} 24.
Nf5 {[%clk 00:04:49]} {[%emt 00:01:05]} Qh5 {[%clk 00:05:34]} {[%emt 00:00:57]}
25. Rxg8+ {[%clk 00:04:32]} {[%emt 00:00:23]} Kxg8 {[%clk 00:04:23]} {[%emt
00:01:16]} 26. Qxa5 {[%clk 00:04:27]} {[%emt 00:00:09]} Rf7 {[%clk 00:02:52]}
{[%emt 00:01:36]} 27. Rf1 {[%clk 00:02:04]} {[%emt 00:02:27]} Kh7 {[%clk
00:02:26]} {[%emt 00:00:29]} 28. Qxc5 {[%clk 00:01:50]} {[%emt 00:00:22]} Qg6
{[%clk 00:01:58]} {[%emt 00:00:33]} 29. Qg1 {[%clk 00:01:20]} {[%emt 00:00:35]}
Rc7 {[%clk 00:01:51]} {[%emt 00:00:12]} 30. Qxg6+ {[%clk 00:01:17]} {[%emt
00:00:08]} Kxg6 {[%clk 00:01:54]} {[%emt 00:00:01]} 31. Rg1+ {[%clk 00:01:03]}
{[%emt 00:00:19]} Kh5 {[%clk 00:01:55]} {[%emt 00:00:04]} 32. b3 {[%clk
00:01:05]} {[%emt 00:00:04]} b5 {[%clk 00:01:59]} 33. Rg7 {[%clk 00:00:59]}
{[%emt 00:00:10]} bxc4 {[%clk 00:01:59]} {[%emt 00:00:05]} 34. Rxc7 {[%clk
00:01:01]} {[%emt 00:00:03]} 1-0

[Event "Elite Hotels Open 2024"]
[Site "Elite Stadshotellet, Kungsgatan 6, Vaxjo, Sweden"]
[Date "2024.02.09"]
[Round "2.13"]
[White "Wegerif, Andrew"]
[Black "Kristensen, Kaare Hove"]
[Result "0-1"]
[TimeControl "15 minutes + 5 seconds per move from move one (Round 1 - 4) / 90 minutes + 30 seconds per move from move one (Round 5 - 8)"]
[BlackTitle "IM"]
[WhiteFideId "1713809"]
[BlackFideId "1400940"]
[WhiteElo "1928"]
[BlackElo "2324"]

1. d4 {[%clk 00:15:04]} {[%emt 00:00:05]} d5 {[%clk 00:15:07]} {[%emt
00:00:03]} 2. c4 {[%clk 00:15:08]} {[%emt 00:00:02]} e6 {[%clk 00:15:11]}
{[%emt 00:00:01]} 3. g3 {[%clk 00:15:10]} {[%emt 00:00:03]} c6 {[%clk
00:14:40]} {[%emt 00:00:36]} 4. Bg2 {[%clk 00:15:12]} {[%emt 00:00:03]} dxc4
{[%clk 00:14:29]} {[%emt 00:00:16]} 5. a4 {[%clk 00:14:57]} {[%emt 00:00:19]}
Nf6 {[%clk 00:13:07]} {[%emt 00:01:27]} 6. Nf3 {[%clk 00:14:36]} {[%emt
00:00:26]} b5 {[%clk 00:11:28]} {[%emt 00:01:43]} 7. Ne5 {[%clk 00:12:32]}
{[%emt 00:02:10]} Nd5 {[%clk 00:11:02]} {[%emt 00:00:31]} 8. O-O {[%clk
00:12:22]} {[%emt 00:00:15]} Bb7 {[%clk 00:10:19]} {[%emt 00:00:47]} 9. b3
{[%clk 00:12:01]} {[%emt 00:00:28]} cxb3 {[%clk 00:10:07]} {[%emt 00:00:17]} 10.
Qxb3 {[%clk 00:11:43]} {[%emt 00:00:22]} a6 {[%clk 00:09:59]} {[%emt 00:00:13]}
11. Na3 {[%clk 00:10:35]} {[%emt 00:01:13]} Nd7 {[%clk 00:06:36]} {[%emt
00:03:28]} 12. Bb2 {[%clk 00:08:44]} {[%emt 00:01:56]} Be7 {[%clk 00:06:20]}
{[%emt 00:00:21]} 13. Rfc1 {[%clk 00:06:35]} {[%emt 00:02:15]} Nxe5 {[%clk
00:06:23]} {[%emt 00:00:03]} 14. dxe5 {[%clk 00:06:37]} {[%emt 00:00:02]} O-O
{[%clk 00:06:14]} {[%emt 00:00:14]} 15. Bd4 {[%clk 00:05:42]} {[%emt 00:01:00]}
Nf4 {[%clk 00:04:42]} {[%emt 00:01:36]} 16. gxf4 {[%clk 00:05:45]} {[%emt
00:00:03]} Qxd4 {[%clk 00:04:46]} {[%emt 00:00:01]} 17. Rd1 {[%clk 00:05:24]}
{[%emt 00:00:26]} Qxf4 {[%clk 00:03:49]} {[%emt 00:01:02]} 18. axb5 {[%clk
00:04:44]} {[%emt 00:00:45]} axb5 {[%clk 00:03:46]} {[%emt 00:00:08]} 19. Nxb5
{[%clk 00:04:01]} {[%emt 00:00:48]} Rxa1 {[%clk 00:03:05]} {[%emt 00:00:47]} 20.
Rxa1 {[%clk 00:04:04]} {[%emt 00:00:01]} cxb5 {[%clk 00:03:03]} {[%emt
00:00:08]} 21. Bxb7 {[%clk 00:04:05]} {[%emt 00:00:05]} Qxe5 {[%clk 00:03:05]}
{[%emt 00:00:02]} 22. Rb1 {[%clk 00:03:02]} {[%emt 00:01:08]} Qxe2 {[%clk
00:02:46]} {[%emt 00:00:23]} 23. Qxb5 {[%clk 00:02:58]} {[%emt 00:00:10]} Qg4+
{[%clk 00:02:29]} {[%emt 00:00:19]} 24. Bg2 {[%clk 00:02:58]} {[%emt 00:00:09]}
g6 {[%clk 00:02:27]} {[%emt 00:00:07]} 25. Qd7 {[%clk 00:02:50]} {[%emt
00:00:12]} Bc5 {[%clk 00:02:21]} {[%emt 00:00:11]} 26. Qc6 {[%clk 00:02:01]}
{[%emt 00:00:54]} Bxf2+ {[%clk 00:02:14]} {[%emt 00:00:13]} 27. Kxf2 {[%clk
00:02:04]} {[%emt 00:00:02]} Qf5+ {[%clk 00:02:17]} {[%emt 00:00:02]} 0-1

[Event "Elite Hotels Open 2024"]
[Site "Elite Stadshotellet, Kungsgatan 6, Vaxjo, Sweden"]
[Date "2024.02.09"]
[Round "2.14"]
[White "Crevatin, Leo"]
[Black "Winfridsson, Hakan"]
[Result "1-0"]
[TimeControl "15 minutes + 5 seconds per move from move one (Round 1 - 4) / 90 minutes + 30 seconds per move from move one (Round 5 - 8)"]
[WhiteTitle "FM"]
[WhiteFideId "1726307"]
[BlackFideId "1706292"]
[WhiteElo "2303"]
[BlackElo "1919"]

1. d4 {[%clk 00:15:08]} {[%emt 00:00:01]} d5 {[%clk 00:15:03]} {[%emt
00:00:08]} 2. c4 {[%clk 00:15:11]} {[%emt 00:00:02]} c6 {[%clk 00:15:01]}
{[%emt 00:00:06]} 3. Nf3 {[%clk 00:15:14]} {[%emt 00:00:02]} Nf6 {[%clk
00:15:00]} {[%emt 00:00:06]} 4. Qc2 {[%clk 00:15:17]} {[%emt 00:00:03]} e6
{[%clk 00:13:59]} {[%emt 00:01:05]} 5. Bg5 {[%clk 00:15:18]} {[%emt 00:00:03]}
Be7 {[%clk 00:13:51]} {[%emt 00:00:13]} 6. e3 {[%clk 00:15:21]} {[%emt
00:00:02]} O-O {[%clk 00:13:48]} {[%emt 00:00:08]} 7. Nc3 {[%clk 00:15:23]}
{[%emt 00:00:03]} Nbd7 {[%clk 00:13:45]} {[%emt 00:00:09]} 8. Rd1 {[%clk
00:15:05]} {[%emt 00:00:22]} dxc4 {[%clk 00:13:29]} {[%emt 00:00:21]} 9. Bxc4
{[%clk 00:15:06]} {[%emt 00:00:04]} b5 {[%clk 00:13:23]} {[%emt 00:00:12]} 10.
Bd3 {[%clk 00:15:00]} {[%emt 00:00:10]} a6 {[%clk 00:13:24]} {[%emt 00:00:05]}
11. O-O {[%clk 00:12:58]} {[%emt 00:02:07]} Bb7 {[%clk 00:13:09]} {[%emt
00:00:20]} 12. e4 {[%clk 00:12:22]} {[%emt 00:00:41]} h6 {[%clk 00:13:01]}
{[%emt 00:00:12]} 13. Bh4 {[%clk 00:12:18]} {[%emt 00:00:09]} Rc8 {[%clk
00:12:48]} {[%emt 00:00:17]} 14. e5 {[%clk 00:12:04]} {[%emt 00:00:19]} Nd5
{[%clk 00:12:51]} {[%emt 00:00:02]} 15. Bxe7 {[%clk 00:11:47]} {[%emt
00:00:22]} Qxe7 {[%clk 00:12:54]} {[%emt 00:00:02]} 16. Nxd5 {[%clk 00:11:49]}
{[%emt 00:00:04]} cxd5 {[%clk 00:12:34]} {[%emt 00:00:24]} 17. Qd2 {[%clk
00:11:41]} {[%emt 00:00:12]} Rc7 {[%clk 00:12:16]} {[%emt 00:00:24]} 18. Bb1
{[%clk 00:11:34]} {[%emt 00:00:12]} Rfc8 {[%clk 00:12:13]} {[%emt 00:00:07]} 19.
h4 {[%clk 00:10:47]} {[%emt 00:00:52]} b4 {[%clk 00:11:34]} {[%emt 00:00:44]}
20. Rfe1 {[%clk 00:10:04]} {[%emt 00:00:48]} a5 {[%clk 00:11:18]} {[%emt
00:00:21]} 21. Qd3 {[%clk 00:09:53]} {[%emt 00:00:17]} Nf8 {[%clk 00:11:19]}
{[%emt 00:00:04]} 22. h5 {[%clk 00:08:26]} {[%emt 00:01:32]} Qd8 {[%clk
00:10:20]} {[%emt 00:01:02]} 23. Nd2 {[%clk 00:08:05]} {[%emt 00:00:27]} Qg5
{[%clk 00:09:35]} {[%emt 00:00:50]} 24. Nb3 {[%clk 00:07:01]} {[%emt 00:01:10]}
a4 {[%clk 00:08:01]} {[%emt 00:01:38]} 25. Nc5 {[%clk 00:07:00]} {[%emt
00:00:06]} Bc6 {[%clk 00:08:02]} {[%emt 00:00:04]} 26. Qe2 {[%clk 00:06:13]}
{[%emt 00:00:52]} Nd7 {[%clk 00:07:41]} {[%emt 00:00:27]} 27. Rc1 {[%clk
00:05:11]} {[%emt 00:01:07]} Nxc5 {[%clk 00:07:14]} {[%emt 00:00:31]} 28. Rxc5
{[%clk 00:05:12]} {[%emt 00:00:04]} Be8 {[%clk 00:07:10]} {[%emt 00:00:09]} 29.
Qa6 {[%clk 00:03:46]} {[%emt 00:01:32]} Rxc5 {[%clk 00:06:55]} {[%emt
00:00:20]} 30. dxc5 {[%clk 00:03:49]} {[%emt 00:00:01]} Rxc5 {[%clk 00:06:59]}
{[%emt 00:00:02]} 31. Qa8 {[%clk 00:03:37]} {[%emt 00:00:17]} Qe7 {[%clk
00:07:00]} {[%emt 00:00:03]} 32. Bd3 {[%clk 00:03:34]} {[%emt 00:00:07]} Kf8
{[%clk 00:06:41]} {[%emt 00:00:25]} 33. Qb8 {[%clk 00:03:25]} {[%emt 00:00:13]}
Rc7 {[%clk 00:06:22]} {[%emt 00:00:24]} 34. g3 {[%clk 00:02:14]} {[%emt
00:01:16]} Rb7 {[%clk 00:05:28]} {[%emt 00:01:00]} 35. Qc8 {[%clk 00:01:28]}
{[%emt 00:00:51]} Qc7 {[%clk 00:05:23]} {[%emt 00:00:09]} 36. Qxc7 {[%clk
00:01:28]} {[%emt 00:00:06]} Rxc7 {[%clk 00:05:27]} {[%emt 00:00:02]} 37. Kf1
{[%clk 00:01:06]} {[%emt 00:00:27]} Ke7 {[%clk 00:05:30]} {[%emt 00:00:02]} 38.
Ke2 {[%clk 00:01:02]} {[%emt 00:00:08]} Rc5 {[%clk 00:05:33]} {[%emt 00:00:02]}
39. Ke3 {[%clk 00:01:02]} {[%emt 00:00:05]} f6 {[%clk 00:05:28]} {[%emt
00:00:11]} 40. Kd4 {[%clk 00:00:57]} {[%emt 00:00:10]} Rc7 {[%clk 00:05:31]}
{[%emt 00:00:01]} 41. g4 {[%clk 00:00:45]} {[%emt 00:00:17]} Bf7 {[%clk
00:03:43]} {[%emt 00:01:54]} 42. f4 {[%clk 00:00:46]} {[%emt 00:00:04]} f5
{[%clk 00:03:31]} {[%emt 00:00:17]} 43. gxf5 {[%clk 00:00:40]} {[%emt
00:00:10]} exf5 {[%clk 00:03:35]} {[%emt 00:00:02]} 44. Rg1 {[%clk 00:00:40]}
{[%emt 00:00:04]} Kf8 {[%clk 00:03:36]} {[%emt 00:00:05]} 45. Bxf5 {[%clk
00:00:25]} {[%emt 00:00:20]} Rc4+ {[%clk 00:03:40]} 46. Ke3 {[%clk 00:00:27]}
{[%emt 00:00:02]} Bxh5 {[%clk 00:03:44]} {[%emt 00:00:02]} 47. Bd3 {[%clk
00:00:26]} {[%emt 00:00:06]} Rc7 {[%clk 00:03:46]} {[%emt 00:00:03]} 48. Kd4
{[%clk 00:00:22]} {[%emt 00:00:10]} Bf7 {[%clk 00:03:48]} {[%emt 00:00:03]} 49.
f5 {[%clk 00:00:25]} {[%emt 00:00:02]} a3 {[%clk 00:03:42]} {[%emt 00:00:10]}
50. bxa3 {[%clk 00:00:25]} {[%emt 00:00:06]} bxa3 {[%clk 00:03:46]} 51. Rb1
{[%clk 00:00:15]} {[%emt 00:00:14]} g5 {[%clk 00:03:41]} {[%emt 00:00:11]} 52.
e6 {[%clk 00:00:16]} {[%emt 00:00:04]} Bxe6 {[%clk 00:03:32]} {[%emt 00:00:14]}
53. fxe6 {[%clk 00:00:18]} {[%emt 00:00:02]} Ke7 {[%clk 00:03:36]} 54. Ke5
{[%clk 00:00:21]} {[%emt 00:00:03]} d4 {[%clk 00:03:38]} {[%emt 00:00:03]} 55.
Rf1 {[%clk 00:00:21]} {[%emt 00:00:05]} Rc5+ {[%clk 00:03:36]} {[%emt
00:00:08]} 56. Kxd4 {[%clk 00:00:24]} {[%emt 00:00:02]} Ra5 {[%clk 00:03:40]}
{[%emt 00:00:01]} 57. Bc4 {[%clk 00:00:27]} {[%emt 00:00:02]} g4 {[%clk
00:03:43]} {[%emt 00:00:01]} 58. Rf7+ {[%emt 00:00:02]} Ke8 59. Rb7 {[%clk
00:00:32]} {[%emt 00:00:03]} g3 {[%clk 00:03:50]} {[%emt 00:00:03]} 60. Bb5+
{[%clk 00:00:30]} {[%emt 00:00:07]} Kf8 {[%clk 00:03:52]} {[%emt 00:00:03]} 61.
Ke5 {[%clk 00:00:19]} {[%emt 00:00:16]} g2 {[%clk 00:03:52]} {[%emt 00:00:05]}
62. Kf6 {[%clk 00:00:19]} {[%emt 00:00:06]} Ra8 {[%clk 00:03:44]} {[%emt
00:00:14]} 63. Rf7+ {[%clk 00:00:19]} {[%emt 00:00:05]} Kg8 {[%clk 00:03:48]}
64. Rg7+ {[%clk 00:00:23]} {[%emt 00:00:01]} Kh8 {[%clk 00:03:52]} 65. Rxg2
{[%clk 00:00:26]} {[%emt 00:00:02]} 1-0

[Event "Elite Hotels Open 2024"]
[Site "Elite Stadshotellet, Kungsgatan 6, Vaxjo, Sweden"]
[Date "2024.02.09"]
[Round "2.15"]
[White "Halvarsson, Peter"]
[Black "Falkevall, Axel"]
[Result "0-1"]
[TimeControl "15 minutes + 5 seconds per move from move one (Round 1 - 4) / 90 minutes + 30 seconds per move from move one (Round 5 - 8)"]
[BlackTitle "FM"]
[WhiteFideId "1701843"]
[BlackFideId "1735560"]
[WhiteElo "1919"]
[BlackElo "2290"]

1. e4 {[%clk 00:15:07]} {[%emt 00:00:01]} c5 {[%clk 00:15:07]} {[%emt
00:00:04]} 2. a3 {[%clk 00:15:11]} {[%emt 00:00:02]} g6 {[%clk 00:15:05]}
{[%emt 00:00:06]} 3. h4 {[%clk 00:15:14]} {[%emt 00:00:02]} h6 {[%clk
00:14:16]} {[%emt 00:00:53]} 4. Nc3 {[%clk 00:15:13]} {[%emt 00:00:07]} Bg7
{[%clk 00:14:17]} {[%emt 00:00:03]} 5. Bc4 {[%clk 00:15:16]} {[%emt 00:00:03]}
e6 {[%clk 00:14:11]} {[%emt 00:00:10]} 6. d3 {[%clk 00:14:46]} {[%emt
00:00:36]} Ne7 {[%clk 00:14:11]} {[%emt 00:00:05]} 7. Nf3 {[%emt 00:01:21]}
Nbc6 {[%emt 00:02:00]} 8. Rb1 {[%clk 00:11:47]} d5 {[%clk 00:13:43]} {[%emt
00:00:26]} 9. Ba2 {[%emt 00:00:29]} Nd4 {[%clk 00:12:31]} {[%emt 00:00:58]} 10.
Bd2 {[%clk 00:10:27]} {[%emt 00:01:21]} O-O {[%clk 00:11:34]} {[%emt 00:01:01]}
11. Nh2 {[%clk 00:07:18]} {[%emt 00:03:14]} b5 {[%clk 00:10:45]} {[%emt
00:00:54]} 12. h5 {[%clk 00:06:39]} {[%emt 00:00:44]} g5 {[%clk 00:09:57]}
{[%emt 00:00:52]} 13. f4 {[%clk 00:06:21]} {[%emt 00:00:23]} gxf4 {[%clk
00:08:55]} {[%emt 00:01:07]} 14. Bxf4 {[%clk 00:06:02]} {[%emt 00:00:24]} e5
{[%clk 00:08:11]} {[%emt 00:00:48]} 15. Bd2 {[%clk 00:05:46]} {[%emt 00:00:22]}
c4 {[%clk 00:07:18]} {[%emt 00:00:58]} 16. Ng4 {[%clk 00:05:01]} {[%emt
00:00:50]} Kh7 {[%clk 00:06:40]} {[%emt 00:00:43]} 17. exd5 {[%clk 00:03:53]}
{[%emt 00:01:13]} f5 {[%clk 00:06:21]} {[%emt 00:00:23]} 18. Nf2 {[%clk
00:02:54]} {[%emt 00:01:05]} Nxd5 {[%clk 00:05:16]} {[%emt 00:01:10]} 19. dxc4
{[%clk 00:02:38]} {[%emt 00:00:22]} bxc4 {[%clk 00:05:09]} {[%emt 00:00:11]} 20.
Bxc4 {[%clk 00:02:37]} {[%emt 00:00:07]} Nb6 {[%clk 00:05:02]} {[%emt
00:00:11]} 21. Bd3 {[%clk 00:02:34]} {[%emt 00:00:09]} Bb7 {[%clk 00:04:47]}
{[%emt 00:00:20]} 22. Rg1 {[%clk 00:01:28]} {[%emt 00:01:11]} e4 {[%clk
00:04:44]} {[%emt 00:00:08]} 23. Ncxe4 {[%clk 00:01:15]} {[%emt 00:00:19]} fxe4
{[%clk 00:04:41]} {[%emt 00:00:07]} 24. Nxe4 {[%clk 00:01:18]} {[%emt
00:00:02]} Qh4+ {[%clk 00:03:37]} {[%emt 00:01:08]} 25. g3 {[%clk 00:01:16]}
{[%emt 00:00:07]} Qe7 {[%clk 00:03:36]} {[%emt 00:00:06]} 26. Qg4 {[%clk
00:00:55]} {[%emt 00:00:27]} Rae8 {[%clk 00:02:59]} {[%emt 00:00:40]} 27. Qg6+
{[%clk 00:00:45]} {[%emt 00:00:18]} Kh8 {[%clk 00:03:01]} {[%emt 00:00:02]} 28.
Bxh6 {[%clk 00:00:29]} {[%emt 00:00:22]} Bxe4 {[%clk 00:02:55]} {[%emt
00:00:10]} 29. Bxg7+ {[%clk 00:00:21]} {[%emt 00:00:13]} Qxg7 {[%clk 00:02:59]}
{[%emt 00:00:01]} 30. Bxe4 {[%clk 00:00:07]} {[%emt 00:00:20]} Qxg6 {[%clk
00:03:00]} {[%emt 00:00:03]} 31. hxg6 {[%clk 00:00:11]} {[%emt 00:00:02]} Rxe4+
{[%clk 00:03:03]} {[%emt 00:00:02]} 32. Kd2 {[%clk 00:00:15]} Nf3+ {[%emt
00:00:18]} 33. Kd3 Rd4+ {[%clk 00:02:53]} {[%emt 00:00:03]} 34. Ke3 {[%clk
00:00:22]} {[%emt 00:00:03]} Nd5+ {[%clk 00:02:55]} {[%emt 00:00:02]} 0-1

[Event "Elite Hotels Open 2024"]
[Site "Elite Stadshotellet, Kungsgatan 6, Vaxjo, Sweden"]
[Date "2024.02.09"]
[Round "2.16"]
[White "Frank, Anton"]
[Black "Rydstrom, Tom"]
[Result "0-1"]
[TimeControl "15 minutes + 5 seconds per move from move one (Round 1 - 4) / 90 minutes + 30 seconds per move from move one (Round 5 - 8)"]
[BlackTitle "FM"]
[WhiteFideId "1752383"]
[BlackFideId "1714830"]
[WhiteElo "1913"]
[BlackElo "2254"]

1. c4 {[%clk 00:15:06]} {[%emt 00:00:04]} e5 {[%clk 00:15:09]} {[%emt
00:00:02]} 2. g3 {[%clk 00:15:09]} {[%emt 00:00:02]} Nf6 {[%clk 00:15:08]}
{[%emt 00:00:06]} 3. Bg2 {[%clk 00:15:11]} {[%emt 00:00:02]} d5 {[%clk
00:15:10]} {[%emt 00:00:04]} 4. cxd5 {[%clk 00:15:15]} {[%emt 00:00:02]} Nxd5
{[%clk 00:15:14]} {[%emt 00:00:01]} 5. Nf3 {[%clk 00:15:18]} {[%emt 00:00:01]}
Nc6 {[%clk 00:15:18]} 6. O-O {[%clk 00:15:21]} {[%emt 00:00:02]} Be7 {[%clk
00:14:53]} {[%emt 00:00:31]} 7. Nc3 {[%clk 00:15:18]} {[%emt 00:00:07]} Nb6
{[%clk 00:14:56]} {[%emt 00:00:02]} 8. a3 {[%clk 00:15:07]} {[%emt 00:00:16]}
a5 {[%clk 00:14:45]} {[%emt 00:00:16]} 9. d3 {[%clk 00:15:09]} {[%emt
00:00:03]} Be6 {[%clk 00:14:49]} {[%emt 00:00:01]} 10. Be3 {[%clk 00:15:05]}
{[%emt 00:00:08]} Nd5 {[%clk 00:14:33]} {[%emt 00:00:21]} 11. Nxd5 {[%clk
00:14:23]} {[%emt 00:00:47]} Bxd5 {[%clk 00:14:37]} {[%emt 00:00:01]} 12. Rc1
{[%clk 00:14:22]} {[%emt 00:00:05]} O-O {[%clk 00:14:27]} {[%emt 00:00:16]} 13.
Qa4 {[%clk 00:13:18]} {[%emt 00:01:08]} Bf6 {[%clk 00:12:11]} {[%emt 00:02:22]}
14. Rfd1 {[%clk 00:11:55]} {[%emt 00:01:27]} Re8 {[%clk 00:12:00]} {[%emt
00:00:17]} 15. Bc5 {[%clk 00:08:37]} {[%emt 00:03:22]} Nd4 {[%clk 00:10:15]}
{[%emt 00:01:51]} 16. Bxd4 {[%clk 00:07:12]} {[%emt 00:01:29]} exd4 {[%clk
00:10:19]} {[%emt 00:00:01]} 17. Qc2 {[%clk 00:07:06]} {[%emt 00:00:12]} c6
{[%clk 00:10:07]} {[%emt 00:00:17]} 18. a4 {[%clk 00:06:37]} {[%emt 00:00:34]}
Qb6 {[%clk 00:09:45]} {[%emt 00:00:27]} 19. Re1 {[%clk 00:05:52]} {[%emt
00:00:49]} Bb3 {[%clk 00:09:30]} {[%emt 00:00:20]} 20. Qd2 {[%clk 00:05:10]}
{[%emt 00:00:46]} Bxa4 {[%clk 00:09:20]} {[%emt 00:00:15]} 21. Qf4 {[%clk
00:05:05]} {[%emt 00:00:10]} Bb3 {[%clk 00:09:07]} {[%emt 00:00:18]} 22. Nd2
{[%clk 00:05:01]} {[%emt 00:00:08]} Be6 {[%clk 00:08:40]} {[%emt 00:00:33]} 23.
Ne4 {[%clk 00:05:02]} {[%emt 00:00:05]} Be7 {[%clk 00:08:39]} {[%emt 00:00:06]}
24. h4 {[%clk 00:04:28]} {[%emt 00:00:39]} a4 {[%clk 00:07:22]} {[%emt
00:01:22]} 25. Bf3 {[%clk 00:03:05]} {[%emt 00:01:27]} Bd5 {[%clk 00:07:06]}
{[%emt 00:00:22]} 26. Kh2 {[%clk 00:02:26]} {[%emt 00:00:44]} h6 {[%clk
00:05:03]} {[%emt 00:02:08]} 27. Nd2 {[%clk 00:01:51]} {[%emt 00:00:39]} Bxf3
{[%clk 00:04:53]} {[%emt 00:00:16]} 28. Nxf3 {[%clk 00:01:55]} {[%emt
00:00:01]} Bb4 {[%clk 00:04:57]} {[%emt 00:00:01]} 29. Rf1 {[%clk 00:01:13]}
{[%emt 00:00:47]} Rxe2 {[%clk 00:04:49]} {[%emt 00:00:14]} 30. Ne5 {[%clk
00:01:16]} {[%emt 00:00:02]} Qc7 {[%clk 00:04:29]} {[%emt 00:00:25]} 31. Qxd4
{[%clk 00:01:05]} {[%emt 00:00:16]} Qxe5 {[%clk 00:04:33]} {[%emt 00:00:01]} 32.
Qxb4 {[%clk 00:01:08]} {[%emt 00:00:02]} Rxb2 {[%clk 00:03:50]} {[%emt
00:00:48]} 33. Qa3 {[%clk 00:00:52]} {[%emt 00:00:21]} Rb3 {[%clk 00:03:38]}
{[%emt 00:00:15]} 34. Qa2 {[%clk 00:00:56]} {[%emt 00:00:02]} Rxd3 {[%clk
00:03:36]} {[%emt 00:00:06]} 35. Rce1 {[%clk 00:01:00]} {[%emt 00:00:02]} Qd5
{[%clk 00:03:38]} {[%emt 00:00:03]} 36. Qb1 {[%clk 00:00:56]} {[%emt 00:00:09]}
b5 {[%clk 00:03:31]} {[%emt 00:00:12]} 37. Re2 {[%clk 00:00:56]} {[%emt
00:00:06]} a3 {[%clk 00:03:20]} {[%emt 00:00:17]} 38. Rfe1 {[%clk 00:01:00]} a2
{[%clk 00:03:07]} {[%emt 00:00:18]} 39. Qa1 {[%clk 00:00:58]} {[%emt 00:00:07]}
b4 {[%clk 00:02:33]} {[%emt 00:00:39]} 40. Re5 {[%clk 00:00:36]} {[%emt
00:00:26]} Qf3 {[%clk 00:01:36]} {[%emt 00:01:02]} 41. Re8+ {[%clk 00:00:37]}
{[%emt 00:00:04]} Rxe8 {[%emt 00:00:01]} 42. Rxe8+ {[%clk 00:00:41]} Kh7 {[%clk
00:01:45]} 43. Qxa2 {[%clk 00:00:43]} {[%emt 00:00:03]} Rd1 {[%clk 00:01:49]}
44. Qc2+ {[%clk 00:00:16]} {[%emt 00:00:31]} f5 {[%clk 00:01:45]} {[%emt
00:00:10]} 0-1